bitfinex-derivatives/quotes_ETHF0:USTF0_20230902
["timestamp","ask_amount","ask_price","bid_price","bid_amount"]
[1693638022164,2.29895,1631.9,1631.8,14.78766]
[1693638022566,2.30281487,1631.9,1631.8,14.78766]
[1693638023063,4.60174487,1631.9,1631.8,14.78766]
[1693638026873,4.70616846,1631.9,1631.8,14.78766]
[1693638027768,3.16174487,1631.9,1631.8,14.78766]
[1693638027965,4.12172487,1631.9,1631.8,14.78766]
[1693638028375,1.35279487,1631.9,1631.8,14.78766]
[1693638028572,1.35652968,1631.9,1631.8,14.78766]
[1693638029578,2.30265481,1631.9,1631.8,14.78766]
[1693638030275,4.60157481,1631.9,1631.8,14.78766]
[1693638031069,2.30265481,1631.9,1631.8,14.78766]
[1693638031276,0.00373481,1631.9,1631.8,14.78766]
[1693638032077,0.00373481,1631.9,1631.8,17.148]
[1693638032980,0.00373481,1631.9,1631.8,23.71480431]
[1693638037178,6.89616,1632.1,1631.9,5.1984]
[1693638037380,9.35766,1632.1,1632.0,12.40028]
[1693638037581,11.76082359,1632.1,1632.0,12.15344186]
[1693638037780,11.76082359,1632.1,1632.0,7.80276]
[1693638037781,9.29932359,1632.1,1632.0,7.80276]
[1693638038075,9.29932359,1632.1,1632.0,5.504]
[1693638038585,9.29932359,1632.1,1632.0,7.80276]
[1693638039884,9.29932359,1632.1,1632.0,5.504]
[1693638040086,9.29932359,1632.1,1631.9,7.80283]
[1693638040285,0.41095192,1632.0,1631.9,5.504]
[1693638040481,9.60599192,1632.0,1631.9,5.504]
[1693638041980,9.60599192,1632.0,1631.8,5.5653]
[1693638042380,0.10442359,1631.9,1631.8,10.16337]
[1693638042577,7.00115359,1631.9,1631.8,10.16337]
[1693638042879,6.89673,1631.9,1631.8,10.16337]
[1693638043081,4.72136,1632.0,1631.8,17.62863352]
[1693638043386,7.02016,1632.0,1631.9,5.504]
[1693638043585,9.31896,1632.0,1631.9,14.9287]
[1693638043886,6.89636,1632.0,1631.9,14.9287]
[1693638045587,6.89993355,1632.0,1631.9,14.9287]
[1693638045781,7.00435714,1632.0,1631.9,14.9287]
[1693638045984,6.89993355,1632.0,1631.9,14.9287]
[1693638046588,4.60113355,1632.0,1631.9,14.9287]
[1693638046789,4.60113355,1632.0,1631.9,17.3079]
[1693638047285,8.82048258,1632.2,1632.0,5.1984]
[1693638047486,3.25258182,1632.2,1632.1,12.39986]
[1693638047788,3.25258182,1632.2,1632.1,21.24870045]
[1693638047981,3.25258182,1632.2,1632.1,23.62790045]
[1693638051386,5.0101,1632.4,1632.3,0.0613]
[1693638051600,4.54191213,1632.4,1632.3,12.46032]
[1693638051891,4.54191213,1632.4,1632.3,20.40388352]
[1693638052289,6.89446,1632.5,1632.3,22.70222352]
[1693638052593,6.89446,1632.5,1632.4,7.77393648]
[1693638052594,4.59627,1632.5,1632.4,7.77393648]
[1693638052786,4.59627,1632.5,1632.4,14.66853648]
[1693638052985,6.89446,1632.5,1632.4,14.66853648]
[1693638054488,8.49149258,1632.5,1632.4,14.66853648]
[1693638054683,6.89446,1632.5,1632.4,14.66853648]
[1693638054883,13.54554258,1632.6,1632.5,6.95548]
[1693638055092,13.64996617,1632.6,1632.5,10.16142]
[1693638055396,8.59546617,1632.6,1632.5,13.02858352]
[1693638055788,26.25102319,1632.6,1632.5,13.02858352]
[1693638056193,8.59546617,1632.6,1632.5,13.02858352]
[1693638058789,8.49104258,1632.6,1632.5,13.02858352]
[1693638059791,8.59546617,1632.6,1632.5,10.16142]
[1693638059991,8.59546617,1632.6,1632.5,7.86336]
[1693638060297,8.59546617,1632.6,1632.5,10.16142]
[1693638060797,8.59952808,1632.6,1632.5,10.16142]
[1693638062188,8.59952808,1632.6,1632.5,7.86336]
[1693638062495,8.60293252,1632.6,1632.5,7.86336]
[1693638062695,8.60293252,1632.6,1632.5,10.16145]
[1693638062891,7.00183803,1632.6,1632.5,10.16145]
[1693638064096,7.00183803,1632.6,1632.5,12.73255]
[1693638064396,7.00183803,1632.6,1632.5,15.59971352]
[1693638064891,9.29987803,1632.6,1632.5,5.504]
[1693638065198,9.29987803,1632.6,1632.4,12.3985]
[1693638065494,9.29987803,1632.6,1632.4,12.88447191]
[1693638065695,0.41095192,1632.5,1632.4,12.88447191]
[1693638065895,7.30519192,1632.5,1632.4,12.88447191]
[1693638071802,7.30519192,1632.5,1632.4,15.75163543]
[1693638072396,7.30519192,1632.5,1632.4,12.88447191]
[1693638073399,0.00340444,1632.6,1632.5,0.0613]
[1693638073609,0.00340444,1632.6,1632.5,14.72950648]
[1693638073801,2.30135444,1632.6,1632.5,22.05199648]
[1693638074202,4.59933444,1632.6,1632.5,22.05199648]
[1693638074501,7.00173803,1632.6,1632.5,15.07127]
[1693638074706,7.00173803,1632.6,1632.5,12.39827]
[1693638075395,7.00173803,1632.6,1632.5,15.26543352]
[1693638076597,14.80371803,1632.6,1632.4,0.48597191]
[1693638076800,14.80371803,1632.6,1632.3,5.5653]
[1693638076801,0.41095192,1632.5,1632.3,5.5653]
[1693638077000,9.29734359,1632.4,1632.3,5.504]
[1693638077498,9.30069778,1632.4,1632.3,5.504]
[1693638078606,14.80469778,1632.4,1632.2,0.0613]
[1693638078806,0.41095192,1632.3,1632.2,0.0613]
[1693638079007,9.60443192,1632.3,1632.2,0.0613]
[1693638079204,9.60443192,1632.3,1632.1,10.5597]
[1693638079408,0.10442359,1632.2,1632.1,5.504]
[1693638079603,9.29846359,1632.2,1632.1,7.80265]
[1693638079908,9.29846359,1632.2,1632.1,5.504]
[1693638081012,9.29846359,1632.2,1632.1,7.80265]
[1693638083815,9.29846359,1632.2,1632.1,5.504]
[1693638084016,9.29846359,1632.2,1632.1,7.80267]
[1693638087122,9.29846359,1632.2,1632.1,5.504]
[1693638087421,9.29846359,1632.2,1632.1,7.80267]
[1693638089122,9.29846359,1632.2,1632.1,5.504]
[1693638089325,9.29846359,1632.2,1632.1,7.80267]
[1693638089921,9.29846359,1632.2,1632.1,5.504]
[1693638092522,9.30177909,1632.2,1632.1,5.504]
[1693638099824,9.30177909,1632.2,1632.1,8.008]
[1693638101126,9.30177909,1632.2,1632.1,10.87516352]
[1693638102419,9.30177909,1632.2,1632.1,8.008]
[1693638104331,9.30177909,1632.2,1632.1,10.3948]
[1693638108126,14.80577909,1632.2,1631.8,0.0613]
[1693638108322,5.91495192,1632.1,1631.8,5.0467]
[1693638108524,11.59842359,1632.0,1631.8,5.0467]
[1693638108830,0.41095192,1631.9,1631.8,5.0467]
[1693638109032,9.60671192,1631.9,1631.8,5.0467]
[1693638114827,15.11071192,1631.9,1631.7,0.47971936]
[1693638115029,5.60842359,1631.8,1631.6,5.0689]
[1693638115330,17.41100192,1631.7,1631.6,2.482]
[1693638121838,11.90700192,1631.7,1631.6,2.482]
[1693638122539,11.91014666,1631.7,1631.6,2.482]
[1693638126938,11.91014666,1631.7,1631.6,2.5433]
[1693638128939,9.19998474,1631.7,1631.6,13.21381352]
[1693638129333,9.19998474,1631.7,1631.6,10.91446352]
[1693638130446,9.19998474,1631.7,1631.6,8.0473]
[1693638133646,9.19998474,1631.7,1631.6,2.5433]
[1693638144763,14.70398474,1631.7,1631.5,2.6482]
[1693638144954,0.51537551,1631.6,1631.5,2.6482]
[1693638145256,9.71277551,1631.6,1631.5,2.6482]
[1693638145653,9.71591243,1631.6,1631.5,2.6482]
[1693638146260,9.71591243,1631.6,1631.4,0.53984356]
[1693638146455,9.71591243,1631.6,1631.4,3.06274356]
[1693638147060,27.37146945,1631.6,1631.4,3.06274356]
[1693638151865,5.504,1631.5,1631.4,0.47854356]
[1693638152058,5.504,1631.5,1631.2,12.61483]
[1693638152059,14.70196,1631.5,1631.2,15.19773]
[1693638152254,17.16436,1631.5,1631.2,15.19773]
[1693638152456,5.504,1631.3,1631.2,5.094]
[1693638152656,5.504,1631.3,1631.2,2.6442]
[1693638152657,14.70312,1631.3,1631.2,2.6442]
[1693638154866,14.70312,1631.3,1631.2,3.13647219]
[1693638155969,14.70312,1631.3,1631.2,3.07517219]
[1693638156169,14.70312,1631.3,1631.2,0.49227219]
[1693638156369,14.70312,1631.3,1631.1,6.08325592]
[1693638156565,6.01937551,1631.2,1631.1,6.08325592]
[1693638156776,15.21905551,1631.2,1631.1,6.08325592]
[1693638158166,9.71505551,1631.2,1631.1,6.08325592]
[1693638159473,9.71505551,1631.2,1631.1,6.56409133]
[1693638160176,15.21905551,1631.2,1631.1,4.00329133]
[1693638160381,15.21905551,1631.2,1631.1,3.13263541]
[1693638160575,0.0613,1631.1,1631.0,2.3799]
[1693638160781,9.26154,1631.1,1631.0,2.3799]
[1693638164078,9.26154,1631.1,1631.0,2.87570548]
[1693638167574,9.2646378,1631.1,1631.0,2.87570548]
[1693638179991,9.2646378,1631.1,1630.9,2.6335]
[1693638180183,9.26266,1630.9,1630.8,0.0613]
[1693638180386,14.76666,1630.9,1630.8,0.0613]
[1693638182489,14.76974215,1630.9,1630.8,0.0613]
[1693638183288,14.76974215,1630.9,1630.8,0.5515578]
[1693638186294,14.76974215,1630.9,1630.8,5.71920132]
[1693638186499,9.20444215,1630.9,1630.8,12.9569978]
[1693638186906,9.30886574,1630.9,1630.8,15.82416132]
[1693638188386,9.30886574,1630.9,1630.8,12.9569978]
[1693638188591,9.30886574,1630.9,1630.8,7.4529978]
[1693638188796,9.30886574,1630.9,1630.8,5.1525178]
[1693638189299,9.30886574,1630.9,1630.8,8.01968132]
[1693638189495,9.30886574,1630.9,1630.8,5.1525178]
[1693638191194,9.20444215,1630.9,1630.8,8.01968132]
[1693638191500,9.30886574,1630.9,1630.8,8.01968132]
[1693638191796,9.30886574,1630.9,1630.8,5.1525178]
[1693638192298,9.30886574,1630.9,1630.8,8.01968132]
[1693638192495,9.30886574,1630.9,1630.8,5.1525178]
[1693638196001,9.20444215,1630.9,1630.8,8.01968132]
[1693638196399,9.30886574,1630.9,1630.8,5.1525178]
[1693638197199,9.30886574,1630.9,1630.8,8.01968132]
[1693638197500,9.30886574,1630.9,1630.8,5.1525178]
[1693638203203,9.37016574,1630.9,1630.8,2.8520378]
[1693638206107,9.37016574,1630.9,1630.8,5.71920132]
[1693638206308,9.26574215,1630.9,1630.8,5.71920132]
[1693638206508,9.37016574,1630.9,1630.8,5.1525178]
[1693638207604,9.37016574,1630.9,1630.8,2.7907378]
[1693638208603,9.36708359,1630.9,1630.8,2.7907378]
[1693638210210,9.36708359,1630.9,1630.8,5.0912178]
[1693638211313,9.36708359,1630.9,1630.8,7.95838132]
[1693638212408,9.26266,1630.9,1630.8,7.95838132]
[1693638212608,9.36708359,1630.9,1630.8,7.95838132]
[1693638214816,9.36708359,1630.9,1630.8,5.0912178]
[1693638215014,9.36708359,1630.9,1630.8,7.95838132]
[1693638215717,9.36708359,1630.9,1630.8,5.0912178]
[1693638218516,9.36708359,1630.9,1630.8,7.95838132]
[1693638219617,9.36708359,1630.9,1630.8,5.0912178]
[1693638222320,9.36708359,1630.9,1630.8,7.95838132]
[1693638222521,9.36708359,1630.9,1630.8,5.0912178]
[1693638223319,9.26266,1630.9,1630.8,7.95838132]
[1693638223523,9.36708359,1630.9,1630.8,7.95838132]
[1693638223723,6.90102,1630.9,1630.8,10.32016132]
[1693638224215,9.30578359,1630.9,1630.8,7.4529978]
[1693638224915,9.30578359,1630.9,1630.8,10.32016132]
[1693638225114,9.20136,1630.9,1630.8,10.32016132]
[1693638232027,9.20136,1630.9,1630.8,15.82416132]
[1693638232932,6.90102,1630.9,1630.8,15.82416132]
[1693638235824,4.60046,1631.0,1630.8,18.12464132]
[1693638236030,6.90076,1631.0,1630.9,5.504]
[1693638236229,6.90076,1631.0,1630.9,16.97529648]
[1693638236929,4.60046,1631.0,1630.9,16.97529648]
[1693638237425,2.30022,1631.0,1630.9,16.97529648]
[1693638237631,4.60052,1631.0,1630.9,16.97529648]
[1693638238930,2.30002,1631.2,1630.9,16.97529648]
[1693638239121,4.60002,1631.2,1631.1,5.5653]
[1693638239327,4.60002,1631.2,1631.1,12.46548]
[1693638239328,6.90005,1631.2,1631.1,12.46548]
[1693638239527,6.90005,1631.2,1631.1,14.73541648]
[1693638241833,6.90005,1631.2,1631.1,9.23141648]
[1693638242132,6.90005,1631.2,1631.1,14.73541648]
[1693638247334,6.90005,1631.2,1631.1,15.21798342]
[1693638249836,7.00447359,1631.2,1631.1,15.21798342]
[1693638250344,7.00447359,1631.2,1631.1,12.94804694]
[1693638253449,6.90005,1631.2,1631.1,12.94804694]
[1693638253848,7.00447359,1631.2,1631.1,12.94804694]
[1693638255548,6.90005,1631.2,1631.1,12.94804694]
[1693638255949,7.00447359,1631.2,1631.1,12.94804694]
[1693638256652,9.30450359,1631.2,1631.1,12.94804694]
[1693638261954,9.30450359,1631.2,1631.1,15.81521046]
[1693638262557,9.20008,1631.2,1631.1,15.81521046]
[1693638268661,6.90005,1631.2,1631.1,15.81521046]
[1693638269756,4.60002,1631.2,1631.1,15.81521046]
[1693638270062,4.60002,1631.2,1631.1,18.11527046]
[1693638271266,2.29992,1631.2,1631.1,18.11527046]
[1693638271461,4.89551,1631.4,1631.2,0.0613]
[1693638271663,7.19524,1631.4,1631.3,10.6411]
[1693638271961,6.89917,1631.4,1631.3,17.54035]
[1693638275263,7.00359359,1631.4,1631.3,12.03635]
[1693638275467,7.00359359,1631.4,1631.3,9.76641352]
[1693638276063,6.89917,1631.4,1631.3,9.76641352]
[1693638276263,7.00359359,1631.4,1631.3,9.76641352]
[1693638277565,6.89917,1631.4,1631.3,9.76641352]
[1693638277867,7.00359359,1631.4,1631.3,9.76641352]
[1693638278069,6.89917,1631.4,1631.3,9.76641352]
[1693638278868,7.00359359,1631.4,1631.3,9.76641352]
[1693638279569,6.89917,1631.4,1631.3,9.76641352]
[1693638281870,6.89917,1631.4,1631.3,15.27041352]
[1693638286371,9.1989,1631.4,1631.3,15.27041352]
[1693638286669,6.89917,1631.4,1631.3,15.27041352]
[1693638287577,6.89917,1631.4,1631.3,15.77248688]
[1693638288376,6.89917,1631.4,1631.3,15.83378688]
[1693638289175,4.59944,1631.4,1631.3,18.13353688]
[1693638289370,6.89917,1631.4,1631.3,15.83378688]
[1693638291272,4.59944,1631.4,1631.3,18.13353688]
[1693638292175,2.29971,1631.4,1631.3,18.13353688]
[1693638292369,4.59931,1631.4,1631.3,18.13353688]
[1693638293079,4.89215,1631.5,1631.4,0.0613]
[1693638293276,7.19161,1631.5,1631.4,9.23003648]
[1693638293674,9.49114,1631.5,1631.4,9.23003648]
[1693638293876,6.95984,1631.5,1631.4,9.23003648]
[1693638297981,6.89854,1631.5,1631.4,9.23003648]
[1693638298879,4.59899,1631.5,1631.4,11.52963648]
[1693638299483,6.89852,1631.5,1631.4,11.52963648]
[1693638300577,4.5988,1631.6,1631.5,9.25914]
[1693638300778,4.5988,1631.6,1631.5,12.12630352]
[1693638301581,6.89821,1631.6,1631.5,12.12630352]
[1693638305788,7.00263359,1631.6,1631.5,9.82684352]
[1693638306087,6.89821,1631.6,1631.5,9.82684352]
[1693638309191,6.89821,1631.6,1631.5,12.12632352]
[1693638309494,4.59879,1631.6,1631.5,12.12632352]
[1693638309790,9.37692,1631.7,1631.6,0.0613]
[1693638309987,7.07765,1631.7,1631.6,11.52851648]
[1693638310286,4.59845,1631.7,1631.6,11.52851648]
[1693638310494,6.89772,1631.7,1631.6,11.52851648]
[1693638311890,6.89772,1631.7,1631.6,17.03251648]
[1693638320805,2.24258448,1631.7,1631.6,17.03251648]
[1693638320999,7.41538,1631.8,1631.6,17.03251648]
[1693638321196,9.71447,1631.8,1631.7,8.37116352]
[1693638321400,12.01356,1631.8,1631.7,18.01200157]
[1693638321702,7.08377,1631.8,1631.7,17.56784352]
[1693638323905,9.38286,1631.8,1631.7,17.56784352]
[1693638326210,4.78466,1631.8,1631.7,17.56784352]
[1693638326605,2.36036,1631.8,1631.7,17.56784352]
[1693638327107,2.36034,1631.8,1631.7,17.56784352]
[1693638328108,4.6594,1631.8,1631.7,17.56784352]
[1693638329212,2.36034,1631.8,1631.7,17.56784352]
[1693638330209,4.65938,1631.8,1631.7,17.56784352]
[1693638331206,2.36034,1631.8,1631.7,17.56784352]
[1693638331410,0.0613,1631.8,1631.7,17.56784352]
[1693638331606,9.67853,1631.9,1631.8,0.0613]
[1693638331907,7.86401,1632.0,1631.8,0.0613]
[1693638331908,6.95772,1632.0,1631.9,0.0613]
[1693638332112,0.0612,1632.0,1631.9,17.62806352]
[1693638332712,0.06450896,1632.0,1631.9,17.62806352]
[1693638335220,2.36326896,1632.0,1631.9,17.62806352]
[1693638335617,0.06450896,1632.0,1631.9,17.62806352]
[1693638343425,2.36326896,1632.0,1631.9,17.62806352]
[1693638343626,0.00330896,1632.0,1631.9,17.62806352]
[1693638348515,0.00330896,1632.0,1631.9,18.12266765]
[1693638348722,9.69902,1632.2,1632.1,9.25578]
[1693638348919,9.69902,1632.2,1632.1,14.39288]
[1693638349524,9.7023299,1632.2,1632.1,14.39288]
[1693638351233,9.7023299,1632.2,1632.1,14.33158]
[1693638351934,9.7023299,1632.2,1632.1,19.83558]
[1693638353729,9.86795349,1632.2,1632.1,19.83558]
[1693638353928,14.46503349,1632.2,1632.1,4.59724]
[1693638354428,14.46503349,1632.2,1632.1,7.46440352]
[1693638354628,14.46503349,1632.2,1632.1,9.76302352]
[1693638356624,14.3606099,1632.2,1632.1,9.76302352]
[1693638357134,12.0620499,1632.2,1632.1,9.76302352]
[1693638362036,12.0620499,1632.2,1632.1,15.26702352]
[1693638363038,12.0620499,1632.2,1632.1,15.76575424]
[1693638369738,12.16647349,1632.2,1632.1,12.89859072]
[1693638371036,12.16647349,1632.2,1632.1,15.76575424]
[1693638371541,12.0620499,1632.2,1632.1,15.76575424]
[1693638375641,12.16647349,1632.2,1632.1,12.89859072]
[1693638376339,12.16647349,1632.2,1632.1,15.76575424]
[1693638378242,12.0620499,1632.2,1632.1,15.76575424]
[1693638383949,12.0620499,1632.2,1632.1,10.26175424]
[1693638394347,12.16647349,1632.2,1632.1,10.26175424]
[1693638395055,12.0620499,1632.2,1632.1,10.26175424]
[1693638397252,9.7634899,1632.2,1632.1,18.06437424]
[1693638397459,4.6615899,1632.2,1632.1,18.06437424]
[1693638398160,6.9601299,1632.2,1632.1,18.06437424]
[1693638400359,6.8989299,1632.2,1632.1,18.12567424]
[1693638416373,7.00335349,1632.2,1632.1,18.12567424]
[1693638416570,6.8989299,1632.2,1632.1,18.12567424]
[1693638417171,7.00335349,1632.2,1632.1,18.12567424]
[1693638419866,6.8989299,1632.2,1632.1,18.12567424]
[1693638420269,7.00335349,1632.2,1632.1,18.12567424]
[1693638421174,6.8989299,1632.2,1632.1,18.12567424]
[1693638421472,6.9601299,1632.2,1632.1,18.06437424]
[1693638422174,9.36309349,1632.2,1632.1,8.30134072]
[1693638422368,14.86709349,1632.2,1632.1,0.49873072]
[1693638422567,14.86709349,1632.2,1632.0,2.29875]
[1693638422768,19.90269349,1632.2,1632.0,4.59746]
[1693638422967,0.47215192,1632.1,1632.0,4.59746]
[1693638423176,9.66659192,1632.1,1632.0,2.29871]
[1693638423764,9.66986458,1632.1,1632.0,2.29871]
[1693638424173,9.66986458,1632.1,1632.0,4.59749]
[1693638425571,9.66986458,1632.1,1632.0,7.46465352]
[1693638425964,0.00327266,1632.1,1632.0,15.32873352]
[1693638426164,0.00327266,1632.1,1632.0,17.62751352]
[1693638426366,2.29838,1632.3,1632.2,0.0613]
[1693638426570,2.29838,1632.3,1632.2,17.62634352]
[1693638426773,0.00316242,1632.3,1632.2,17.62634352]
[1693638427175,0.00316242,1632.3,1632.2,22.80084352]
[1693638427670,4.59655,1632.4,1632.3,9.25462]
[1693638427871,6.89481,1632.4,1632.3,11.52455648]
[1693638428267,9.29749359,1632.4,1632.3,2.29833]
[1693638428468,9.29749359,1632.4,1632.3,4.59666]
[1693638429278,9.29749359,1632.4,1632.3,2.29833]
[1693638429574,9.29749359,1632.4,1632.3,4.59666]
[1693638429775,9.19307,1632.4,1632.3,4.59666]
[1693638429975,9.29749359,1632.4,1632.3,4.59666]
[1693638430475,9.19307,1632.4,1632.3,4.59666]
[1693638430676,9.29749359,1632.4,1632.3,2.29833]
[1693638431880,14.80149359,1632.4,1632.3,2.29833]
[1693638432075,14.69707,1632.4,1632.3,2.29833]
[1693638434088,14.69707,1632.4,1632.3,4.59669]
[1693638434891,14.80466382,1632.4,1632.3,4.59669]
[1693638437195,14.70024023,1632.4,1632.3,4.59669]
[1693638442193,14.70024023,1632.4,1632.3,4.65799]
[1693638443102,14.80466382,1632.4,1632.3,4.65799]
[1693638444602,14.70024023,1632.4,1632.3,4.65799]
[1693638444898,14.80466382,1632.4,1632.3,4.65799]
[1693638447907,14.70024023,1632.4,1632.3,4.65799]
[1693638451710,14.80466382,1632.4,1632.3,4.65799]
[1693638451906,14.70024023,1632.4,1632.3,4.65799]
[1693638454910,14.80466382,1632.4,1632.3,4.65799]
[1693638455111,14.70024023,1632.4,1632.3,4.65799]
[1693638456612,14.80466382,1632.4,1632.3,4.65799]
[1693638457306,14.70024023,1632.4,1632.3,4.65799]
[1693638462518,31.94344265,1632.4,1632.3,4.65799]
[1693638462924,14.70024023,1632.4,1632.3,4.65799]
[1693638463124,14.80466382,1632.4,1632.3,4.65799]
[1693638463625,14.70024023,1632.4,1632.3,4.65799]
[1693638471630,14.80466382,1632.4,1632.3,4.65799]
[1693638471827,14.70024023,1632.4,1632.3,4.65799]
[1693638472027,14.70024023,1632.4,1632.3,6.95635]
[1693638473228,14.80466382,1632.4,1632.3,6.95635]
[1693638473730,14.70024023,1632.4,1632.3,6.95635]
[1693638477734,14.80466382,1632.4,1632.3,6.95635]
[1693638477935,14.70024023,1632.4,1632.3,6.95635]
[1693638478337,14.80466382,1632.4,1632.3,6.95635]
[1693638478829,14.70024023,1632.4,1632.3,6.95635]
[1693638479030,14.80466382,1632.4,1632.3,6.95635]
[1693638481936,9.30066382,1632.4,1632.3,6.95635]
[1693638483437,9.19624023,1632.4,1632.3,6.95635]
[1693638484336,9.30066382,1632.4,1632.3,6.95635]
[1693638486634,9.19624023,1632.4,1632.3,6.95635]
[1693638491151,9.30066382,1632.4,1632.3,6.95635]
[1693638496248,9.30066382,1632.4,1632.3,9.82351352]
[1693638497957,9.30066382,1632.4,1632.3,6.95635]
[1693638509263,9.30066382,1632.4,1632.3,9.82351352]
[1693638510765,9.19624023,1632.4,1632.3,9.82351352]
[1693638511769,9.30066382,1632.4,1632.3,9.82351352]
[1693638512266,9.19624023,1632.4,1632.3,9.82351352]
[1693638518265,9.19624023,1632.4,1632.3,6.95635]
[1693638518470,9.30066382,1632.4,1632.3,6.95635]
[1693638525172,9.30066382,1632.4,1632.3,9.82351352]
[1693638525474,9.30066382,1632.4,1632.3,6.95635]
[1693638525974,9.30066382,1632.4,1632.3,9.82351352]
[1693638526373,9.19624023,1632.4,1632.3,9.82351352]
[1693638528275,9.30066382,1632.4,1632.3,9.82351352]
[1693638530778,9.30066382,1632.4,1632.3,6.95635]
[1693638531879,9.30066382,1632.4,1632.3,9.82351352]
[1693638533683,9.30066382,1632.4,1632.3,6.95635]
[1693638533876,9.30066382,1632.4,1632.3,9.82351352]
[1693638535479,9.30066382,1632.4,1632.3,6.95635]
[1693638536779,9.30066382,1632.4,1632.3,9.82351352]
[1693638541284,9.30066382,1632.4,1632.3,6.95635]
[1693638543682,9.30066382,1632.4,1632.3,9.82351352]
[1693638549088,9.19624023,1632.4,1632.3,9.82351352]
[1693638549491,9.30066382,1632.4,1632.3,6.95635]
[1693638549990,9.30066382,1632.4,1632.3,9.82351352]
[1693638553092,9.30066382,1632.4,1632.3,6.95635]
[1693638555594,9.30066382,1632.4,1632.3,9.82351352]
[1693638557502,9.30066382,1632.4,1632.3,6.95635]
[1693638562306,9.30066382,1632.4,1632.3,9.82351352]
[1693638562503,9.30066382,1632.4,1632.3,6.95635]
[1693638567911,9.30066382,1632.4,1632.3,9.82351352]
[1693638569515,9.19624023,1632.4,1632.3,9.82351352]
[1693638570217,9.30066382,1632.4,1632.3,9.82351352]
[1693638573817,9.19624023,1632.4,1632.3,9.82351352]
[1693638574118,9.30066382,1632.4,1632.3,9.82351352]
[1693638574811,9.30066382,1632.4,1632.3,6.95635]
[1693638575715,9.30066382,1632.4,1632.3,0.0613]
[1693638576014,14.80466382,1632.4,1632.3,0.0613]
[1693638576312,14.80466382,1632.4,1632.3,2.35965]
[1693638576518,14.80466382,1632.4,1632.2,5.64887595]
[1693638576719,0.47215192,1632.3,1632.2,3.35047595]
[1693638576916,9.66555192,1632.3,1632.2,5.64896595]
[1693638577713,9.66861819,1632.3,1632.2,5.64896595]
[1693638582925,9.66861819,1632.3,1632.2,3.35047595]
[1693638593536,9.66861819,1632.3,1632.2,8.51612947]
[1693638594335,9.60741819,1632.3,1632.2,8.57742947]
[1693638596741,9.60741819,1632.3,1632.2,5.71026595]
[1693638597240,9.60741819,1632.3,1632.2,8.57742947]
[1693638598236,9.60741819,1632.3,1632.2,5.71026595]
[1693638602247,9.60741819,1632.3,1632.2,8.57742947]
[1693638604446,9.60741819,1632.3,1632.2,6.27893947]
[1693638604645,9.60741819,1632.3,1632.2,3.41177595]
[1693638605449,9.60741819,1632.3,1632.2,5.71026595]
[1693638606152,9.60741819,1632.3,1632.2,8.57742947]
[1693638606650,9.19646627,1632.3,1632.2,8.57742947]
[1693638616459,9.19646627,1632.3,1632.2,5.71026595]
[1693638625162,9.19646627,1632.3,1632.2,8.57742947]
[1693638626168,9.19646627,1632.3,1632.2,5.71026595]
[1693638626766,9.19646627,1632.3,1632.2,1.11341595]
[1693638626966,9.19646627,1632.3,1632.2,3.41190595]
[1693638631877,14.70046627,1632.3,1632.2,3.41190595]
[1693638640785,14.70046627,1632.3,1632.2,5.71039595]
[1693638646780,14.70046627,1632.3,1632.2,8.57755947]
[1693638651394,14.70046627,1632.3,1632.2,10.87604947]
[1693638653790,4.59976627,1632.3,1632.2,13.17453947]
[1693638653996,6.89811627,1632.3,1632.2,13.17453947]
[1693638655797,6.89811627,1632.3,1632.2,10.87604947]
[1693638663105,7.00253986,1632.3,1632.2,10.87604947]
[1693638664007,6.89811627,1632.3,1632.2,10.87604947]
[1693638696040,7.00253986,1632.3,1632.2,10.87604947]
[1693638702043,7.00253986,1632.3,1632.2,5.64909595]
[1693638702244,9.30089986,1632.3,1632.2,3.35060595]
[1693638702545,9.30089986,1632.3,1632.2,5.64910595]
[1693638702741,14.80489986,1632.3,1632.2,5.64910595]
[1693638702944,14.86609986,1632.3,1632.2,3.35060595]
[1693638703445,14.86609986,1632.3,1632.2,5.64910595]
[1693638706541,14.86609986,1632.3,1632.2,3.35060595]
[1693638706742,14.86609986,1632.3,1632.0,5.51277839]
[1693638706743,0.0612,1632.2,1632.0,5.51277839]
[1693638706944,15.27513551,1632.1,1632.0,2.29872]
[1693638707247,0.0612,1632.0,1631.9,5.15358413]
[1693638707445,9.36074359,1632.0,1631.9,5.15358413]
[1693638707651,9.36418447,1632.0,1631.9,5.15358413]
[1693638708151,9.36418447,1632.0,1631.9,1.10577413]
[1693638710348,9.36418447,1632.0,1631.9,3.40469413]
[1693638711351,9.36418447,1632.0,1631.9,1.10577413]
[1693638712250,9.36418447,1632.0,1631.9,3.40469413]
[1693638712451,9.36418447,1632.0,1631.9,1.10577413]
[1693638712849,9.36418447,1632.0,1631.9,3.40469413]
[1693638713151,9.36418447,1632.0,1631.9,5.70361413]
[1693638713453,9.36418447,1632.0,1631.9,3.40469413]
[1693638714557,9.36418447,1632.0,1631.9,1.10577413]
[1693638715048,14.86818447,1632.0,1631.9,1.10577413]
[1693638730378,14.86818447,1632.0,1631.9,3.40469413]
[1693638730766,14.86818447,1632.0,1631.9,1.10577413]
[1693638735076,14.86818447,1632.0,1631.9,1.04447413]
[1693638749187,14.86818447,1632.0,1631.9,1.10577413]
[1693638801043,14.46439986,1632.0,1631.9,1.10577413]
[1693638813749,14.41385569,1632.0,1631.9,1.10577413]
[1693638816151,14.41385569,1632.0,1631.9,3.97293765]
[1693638820855,14.41385569,1632.0,1631.9,1.10577413]
[1693638825163,14.41385569,1632.0,1631.9,3.40469413]
[1693638825862,14.41385569,1632.0,1631.9,6.27185765]
[1693638830467,14.41385569,1632.0,1631.9,8.57077765]
[1693638831867,8.90985569,1632.0,1631.9,8.57077765]
[1693638854396,8.90985569,1632.0,1631.9,5.70361413]
[1693638859905,8.90985569,1632.0,1631.9,3.40469413]
[1693638871913,14.41385569,1632.0,1631.9,3.40469413]
[1693638887733,14.41360698,1632.0,1631.9,3.40469413]
[1693638895241,14.41360698,1632.0,1631.9,5.70361413]
[1693638896243,14.41360698,1632.0,1631.9,3.40469413]
[1693638906850,14.41360698,1632.0,1631.9,6.27185765]
[1693638911856,8.90960698,1632.0,1631.9,6.27185765]
[1693638916464,8.90960698,1632.0,1631.9,3.40469413]
[1693638938773,8.90960698,1632.0,1631.9,3.34339413]
[1693638938970,14.41360698,1632.0,1631.9,0.24701484]
[1693638939172,0.41095192,1631.9,1631.7,4.59823]
[1693638939377,9.19624,1631.8,1631.7,4.59823]
[1693638939879,9.19928758,1631.8,1631.7,4.59823]